bitfinex-derivatives/quotes_ETHF0:USTF0_20250730
["timestamp","ask_amount","ask_price","bid_price","bid_amount"]
[1753847244266,1.7262,3813.9,3813.8,0.86362966]
[1753847247669,1.7262,3813.9,3813.8,1.38811966]
[1753847248473,0.685,3814.2,3814.1,0.6696]
[1753847248970,1.7262,3814.2,3814.1,0.6696]
[1753847249676,1.7262,3814.2,3814.1,0.3847]
[1753847249877,1.7262,3814.2,3814.1,0.1871]
[1753847251370,1.7262,3814.2,3814.1,0.6696]
[1753847252168,1.7262,3814.2,3814.0,0.52445]
[1753847252367,1.4302,3814.1,3814.0,0.52445]
[1753847252573,1.7262,3814.1,3814.0,0.80935]
[1753847252774,1.7262,3814.1,3814.0,0.2849]
[1753847253178,1.7262,3814.1,3814.0,0.472]
[1753847253378,1.7262,3814.1,3814.0,0.6696]
[1753847257682,1.7262,3814.1,3814.0,0.1871]
[1753847257878,1.7262,3813.9,3813.8,0.38112966]
[1753847258083,1.7262,3813.9,3813.8,0.19402966]
[1753847262277,0.52444,3814.3,3813.9,0.52448]
[1753847262478,2.25064,3814.3,3814.2,0.6696]
[1753847262782,1.7262,3813.9,3813.8,0.86362966]
[1753847263082,1.7262,3813.9,3813.8,0.57872966]
[1753847263276,1.7262,3813.9,3813.8,0.86362966]
[1753847263786,1.7262,3813.9,3813.8,1.38811966]
[1753847266382,1.7262,3813.9,3813.8,0.86362966]
[1753847269486,2.49519546,3813.9,3813.8,0.19402966]
[1753847269881,2.49519546,3813.9,3813.2,0.01835704]
[1753847269882,0.981,3813.3,3813.2,0.01835704]
[1753847270089,1.7262,3813.3,3813.2,0.01835704]
[1753847270593,1.71789802,3813.3,3813.2,0.49035704]
[1753847270890,1.71789802,3813.3,3813.2,0.68795704]
[1753847271186,22.77262,3813.7,3813.6,0.6786]
[1753847271598,23.5421213,3813.7,3813.6,0.6786]
[1753847272395,1.4179,3813.3,3813.2,0.01835704]
[1753847272594,1.708,3813.3,3813.2,0.01835704]
[1753847273290,1.708,3813.3,3813.2,0.70705704]
[1753847273799,0.4837,3813.5,3813.4,0.3948]
[1753847273994,1.2216,3813.5,3813.4,0.6887]
[1753847274201,1.4179,3813.5,3813.4,0.6887]
[1753847274401,1.708,3813.5,3813.4,0.6887]
[1753847274996,1.708,3813.5,3813.4,0.2016]
[1753847275196,0.68,3813.3,3813.2,0.21995704]
[1753847275393,1.708,3813.3,3813.2,0.51385704]
[1753847275597,1.708,3813.3,3813.2,0.21995704]
[1753847275797,1.708,3813.3,3813.2,0.01835704]
[1753847280200,0.7738,3813.3,3813.2,0.70705704]
[1753847280503,3.49947163,3815.9,3813.2,0.70705704]
[1753847280504,0.52444,3814.2,3813.9,0.52448]
[1753847280707,0.4837,3814.2,3814.1,1.39455]
[1753847281004,0.4837,3814.5,3814.4,0.3948]
[1753847281206,2.4778335,3814.5,3814.4,0.3948]
[1753847281393,2.4778335,3814.5,3814.4,0.6887]
[1753847281596,0.94025126,3815.2,3815.1,0.2939]
[1753847281795,0.94025126,3815.4,3815.3,0.6887]
[1753847282096,1.13575126,3815.8,3815.7,0.8701]
[1753847282301,2.64825126,3815.8,3815.7,0.6887]
[1753847282504,3.41804873,3815.8,3815.7,0.6887]
[1753847282699,2.48384873,3815.8,3815.7,0.8701]
[1753847282895,0.2,3815.9,3815.8,1.39432]
[1753847283402,0.2,3815.9,3815.8,6.63575353]
[1753847284407,0.4901,3815.9,3815.8,6.63575353]
[1753847284602,0.4901,3815.9,3815.8,5.93013353]
[1753847284798,1.908,3815.9,3815.8,0.6887]
[1753847285698,0.7379,3815.7,3815.0,0.2939]
[1753847285898,0.1963,3815.3,3815.2,0.91909]
[1753847286106,0.9701,3815.3,3815.2,1.21299]
[1753847286401,1.4246,3815.3,3815.2,0.6887]
[1753847286607,1.708,3815.3,3815.2,0.6887]
[1753847288301,0.2901,3815.3,3815.2,0.8701]
[1753847289201,0.9701,3815.3,3815.1,0.52431]
[1753847289400,0.4856,3815.2,3815.1,0.6887]
[1753847289602,0.4545,3815.5,3815.4,0.2016]
[1753847289805,0.4856,3815.5,3815.4,0.8701]
[1753847290000,0.7738,3815.5,3815.4,0.6887]
[1753847290200,1.708,3815.5,3815.4,0.6887]
[1753847290701,0.7738,3815.5,3815.4,0.6887]
[1753847291003,1.6246,3815.9,3815.8,0.6887]
[1753847291306,1.6246,3815.9,3815.8,0.8701]
[1753847291307,0.4901,3815.9,3815.8,0.8701]
[1753847291806,0.9738,3815.9,3815.5,0.52424]
[1753847291999,1.5125,3815.5,3815.4,0.91907]
[1753847292204,1.708,3815.5,3815.4,0.6887]
[1753847292406,1.708,3815.5,3815.4,0.2016]
[1753847293103,1.708,3815.5,3815.4,0.4955]
[1753847293498,0.3918,3815.2,3815.1,0.3948]
[1753847293705,0.68,3815.2,3815.1,0.6887]
[1753847294103,1.4246,3815.2,3815.1,0.6887]
[1753847294610,1.708,3815.2,3815.1,0.6887]
[1753847294811,1.708,3815.2,3815.1,1.21301]
[1753847297011,1.708,3815.2,3815.1,0.6887]
[1753847299113,0.2901,3815.8,3815.2,0.2939]
[1753847299414,0.4901,3815.9,3815.8,0.8701]
[1753847299812,0.4901,3815.9,3815.8,6.11235784]
[1753847300915,0.2,3815.9,3815.8,6.11235784]
[1753847301407,1.8998,3815.9,3815.8,5.93095784]
[1753847301614,1.8998,3815.9,3815.8,0.6887]
[1753847302014,1.5983,3815.9,3815.8,0.6887]
[1753847302213,0.4791,3815.9,3815.8,6.11179617]
[1753847302615,1.6112,3815.9,3815.8,5.92999617]
[1753847303018,1.9127,3815.9,3815.8,5.92999617]
[1753847303514,0.4791,3815.9,3815.8,5.92999617]
[1753847303715,0.9854,3815.9,3815.8,6.11179617]
[1753847304513,1.6112,3815.9,3815.8,5.92999617]
[1753847304713,1.9127,3815.9,3815.8,5.92999617]
[1753847304912,0.7075,3815.7,3815.6,0.71044]
[1753847305114,1.7127,3815.7,3815.6,0.71044]
[1753847305316,1.7127,3815.7,3815.6,1.19954]
[1753847306019,1.7127,3815.7,3815.6,0.6753]
[1753847307325,0.7854,3815.7,3815.6,0.8571]
[1753847307521,0.2,3815.9,3815.6,0.8571]
[1753847307522,0.2,3815.9,3815.8,0.3872]
[1753847307726,0.4791,3815.9,3815.8,0.8571]
[1753847308418,0.6843,3815.9,3815.8,0.8571]
[1753847308721,1.41,3815.9,3815.8,0.8571]
[1753847310122,0.4791,3815.9,3815.8,6.09839617]
[1753847310821,1.6112,3815.9,3815.8,5.91659617]
[1753847311421,1.9127,3815.9,3815.8,0.6753]
[1753847312422,1.9127,3815.9,3815.8,0.1862]
[1753847313322,1.9127,3815.9,3815.8,0.4743]
[1753847313722,1.9127,3815.9,3815.8,0.6753]
[1753847313925,0.9854,3815.9,3815.8,0.6753]
[1753847314119,0.9854,3815.9,3815.8,0.8571]
[1753847316823,1.9127,3815.9,3815.8,0.6753]
[1753847320232,0.4791,3815.9,3815.8,0.6753]
[1753847320425,0.4791,3815.9,3815.8,6.09839617]
[1753847320828,0.2,3815.9,3815.8,6.09839617]
[1753847323831,0.2,3815.9,3815.8,5.91659617]
[1753847324038,1.6112,3815.9,3815.8,5.42749617]
[1753847324234,1.9127,3815.9,3815.8,5.91659617]
[1753847325032,1.9127,3815.9,3815.8,5.71559617]
[1753847325236,1.9127,3815.9,3815.8,5.91659617]
[1753847325733,0.9854,3815.9,3815.8,6.09839617]
[1753847325937,0.2,3815.9,3815.8,6.09839617]
[1753847327935,0.4791,3815.9,3815.8,6.09839617]
[1753847329032,0.2,3815.9,3815.8,5.42749617]
[1753847329240,1.9127,3815.9,3815.8,5.44229617]
[1753847329537,1.9127,3815.9,3815.8,5.91659617]
[1753847330432,0.4791,3815.9,3815.8,5.91659617]
[1753847330637,0.4791,3815.9,3815.8,6.09839617]
[1753847331526,1.1846,3815.9,3815.8,5.91659617]
[1753847331732,1.91,3815.9,3815.8,5.91659617]
[1753847337337,1.6248,3815.9,3815.8,6.09779617]
[1753847337738,0.2,3815.9,3815.8,6.09779617]
[1753847338040,1.7107,3816.5,3816.4,1.21193]
[1753847338239,1.7107,3816.5,3816.4,1.00603]
[1753847338535,1.7107,3816.5,3816.4,6.24732617]
[1753847339040,1.7107,3816.5,3816.4,6.45322617]
[1753847340141,0.5995,3816.5,3816.4,6.63442617]
[1753847341036,1.2263,3816.5,3816.4,6.63442617]
[1753847341636,1.4255,3816.5,3816.4,6.45322617]
[1753847341843,1.2263,3816.5,3816.4,6.63442617]
[1753847343638,0.3059,3816.5,3816.4,6.63442617]
[1753847343845,1.1196,3816.8,3816.7,1.50979]
[1753847344044,1.1196,3816.8,3816.7,1.21189]
[1753847344344,1.1196,3816.8,3816.7,6.45236216]
[1753847345044,1.1196,3816.8,3816.7,6.75026216]
[1753847345945,1.7107,3816.8,3816.7,6.75026216]
[1753847348543,0.4402,3817.5,3817.4,0.1917]
[1753847348737,0.4402,3817.5,3817.4,1.5097]
[1753847348738,1.7107,3817.5,3817.4,1.5097]
[1753847348941,1.7107,3817.5,3817.4,6.74976026]
[1753847349449,1.7107,3817.5,3817.4,6.45186026]
[1753847349650,1.7107,3817.5,3817.4,6.74976026]
[1753847349844,1.4255,3817.5,3817.4,6.74976026]
[1753847350053,1.9107,3817.9,3817.8,1.50964]
[1753847350444,1.9107,3817.9,3817.8,6.74873939]
[1753847350841,1.4263,3817.9,3817.8,6.45083939]
[1753847351147,1.6255,3817.9,3817.8,6.74873939]
[1753847351346,1.9107,3817.9,3817.8,6.74873939]
[1753847352946,1.9107,3817.9,3817.8,6.45083939]
[1753847353846,1.6255,3817.9,3817.8,6.74873939]
[1753847354151,1.9107,3817.9,3817.8,6.45083939]
[1753847355548,1.9107,3817.9,3817.8,6.74873939]
[1753847355749,0.4936,3817.9,3817.8,6.74873939]
[1753847356354,1.4263,3817.9,3817.8,6.74873939]
[1753847356855,0.2,3817.9,3817.8,6.74873939]
[1753847357249,1.2397,3817.9,3817.8,6.74873939]
[1753847357455,1.4263,3817.9,3817.8,6.74873939]
[1753847359050,1.4263,3817.9,3817.8,5.95473939]
[1753847359256,1.9107,3817.9,3817.8,5.72099939]
[1753847359650,1.9107,3817.9,3817.8,5.92689939]
[1753847360256,1.9107,3817.9,3817.8,6.22479939]
[1753847360455,1.9107,3817.9,3817.8,5.92689939]
[1753847362957,1.9107,3817.9,3817.8,5.72099939]
[1753847363759,1.9107,3817.9,3817.8,5.91509939]
[1753847364058,1.9107,3817.9,3817.8,5.23909939]
[1753847364858,1.9107,3817.9,3817.8,5.53749939]
[1753847366459,1.9107,3817.9,3817.8,5.74199939]
[1753847366661,1.9143,3817.9,3817.8,6.22789939]
[1753847368261,1.6311,3817.9,3817.8,6.22789939]
[1753847368663,1.9143,3817.9,3817.8,6.22789939]
[1753847370160,0.9861,3817.9,3817.8,6.22789939]
[1753847370365,1.4217,3817.9,3817.8,6.22789939]
[1753847371659,0.4936,3817.9,3817.8,6.22789939]
[1753847372665,1.4426,3818.6,3818.5,1.51263]
[1753847372855,1.2378,3818.6,3818.5,1.51263]
[1753847373059,1.2378,3818.6,3818.5,6.75118049]
[1753847373259,1.7258,3818.9,3818.8,1.5126]
[1753847373459,1.7258,3818.9,3818.8,0.697]
[1753847374161,0.7011,3818.9,3818.5,26.09759018]
[1753847374464,1.2745,3818.7,3818.6,0.2984]
[1753847374662,1.7258,3818.7,3818.5,26.09717873]
[1753847374856,0.7345,3818.6,3818.5,20.86]
[1753847375057,0.7011,3818.6,3818.5,5.23717873]
[1753847375560,0.7011,3818.6,3818.2,21.1584]
[1753847375766,0.7011,3818.3,3817.8,0.2918]
[1753847375961,1.7258,3818.0,3817.8,0.52394]
[1753847376165,1.7258,3817.9,3817.8,0.52394]
[1753847376356,1.7258,3817.9,3817.8,1.22094]
[1753847376760,1.7258,3817.9,3817.8,1.02684]
[1753847378274,1.38523631,3817.9,3817.8,1.22094]
[1753847380075,1.38523631,3817.9,3817.8,1.45934]
[1753847380481,1.38523631,3817.9,3817.8,1.74084]
[1753847380677,1.38523631,3817.9,3817.8,2.03264]
[1753847380981,1.10203631,3817.9,3817.8,2.03264]
[1753847381277,1.38523631,3817.9,3817.8,2.03264]
[1753847382174,1.38523631,3817.9,3817.8,1.74084]
[1753847383084,1.38523631,3817.9,3817.8,1.2169]
[1753847383477,1.38523631,3817.9,3817.8,0.9354]
[1753847384980,1.30946,3819.0,3817.7,20.877]
[1753847384981,0.5106,3817.8,3817.7,20.877]
[1753847385171,1.7258,3817.5,3817.4,3.27817784]
[1753847385377,1.41860735,3817.5,3817.4,20.865]
[1753847385779,0.6911,3817.3,3817.2,3.48267784]
[1753847385986,1.5544,3817.3,3817.2,3.27817784]
[1753847386278,1.5544,3817.2,3817.1,20.867]
[1753847386477,1.5544,3817.2,3817.1,21.564]
[1753847386678,1.5544,3817.2,3817.1,22.5115]
[1753847387275,1.2378,3817.2,3817.1,21.564]
[1753847387580,0.2902,3817.5,3817.1,27.75101115]
[1753847387778,1.5544,3817.8,3817.7,1.0712]
[1753847388184,1.5544,3817.8,3817.7,0.697]
[1753847388386,1.5544,3817.8,3817.7,1.0712]
[1753847388684,0.3058,3817.8,3817.7,27.7601877]
[1753847388875,0.9476,3817.8,3817.7,27.7601877]
[1753847389079,1.2378,3817.8,3817.7,27.7601877]
[1753847390286,1.4326,3817.8,3817.7,27.7601877]
[1753847391086,1.2378,3817.8,3817.7,27.7601877]
[1753847392383,1.5548,3817.8,3817.7,27.7601877]
[1753847393579,1.5548,3817.8,3817.7,27.4683877]
[1753847393775,0.6961,3817.5,3817.4,21.1594]
[1753847393973,1.5472,3817.5,3817.4,21.1594]
[1753847394178,1.5472,3817.5,3817.4,21.5461]
[1753847394581,1.5472,3817.5,3817.4,20.867]
[1753847394881,1.425,3816.9,3816.8,6.91578]
[1753847395079,1.20657308,3816.9,3816.8,21.5629]
[1753847395278,1.20657308,3816.9,3816.8,26.80199939]
[1753847395279,1.51097308,3816.9,3816.8,26.80199939]
[1753847395584,1.51097308,3816.9,3816.8,27.09439939]
[1753847396381,1.51097308,3816.9,3816.8,27.53149939]
[1753847396580,1.51097308,3816.9,3816.8,27.81049939]
[1753847397680,0.76627308,3816.9,3816.8,27.81049939]
[1753847397879,1.19337308,3816.9,3816.8,27.81049939]
[1753847398086,1.51097308,3816.9,3816.8,27.81049939]
[1753847400290,1.51097308,3816.9,3816.8,21.8553]
[1753847400484,0.65987308,3816.9,3816.4,1.24023]
[1753847400684,1.5472,3816.6,3816.5,22.2864]
[1753847400886,0.3018,3816.6,3816.5,27.80532297]
[1753847401087,1.2296,3816.8,3816.7,1.6894]
[1753847401385,0.8025,3816.8,3816.7,1.6894]
[1753847401791,1.2296,3816.8,3816.7,22.5644]
[1753847402187,0.20691065,3817.8,3817.0,1.20495]
[1753847402188,1.2296,3817.1,3817.0,1.20495]
[1753847402389,1.2296,3817.1,3817.0,2.21345]
[1753847402593,0.6234,3817.4,3817.3,1.01041]
[1753847402795,1.2296,3817.4,3817.3,2.21341]
[1753847403496,1.4252,3817.4,3817.3,2.21341]
[1753847403689,1.2296,3817.4,3817.3,2.21341]
[1753847403889,1.5474,3817.8,3817.7,2.21336]
[1753847404898,1.2296,3817.8,3817.7,2.21336]
[1753847405093,0.5007,3818.3,3818.2,0.52387]
[1753847405299,1.5474,3818.3,3818.2,1.93427]
[1753847405599,1.5474,3818.3,3818.2,0.4846]
[1753847406695,1.5474,3818.3,3818.2,0.2924]
[1753847408900,1.5474,3818.3,3818.2,0.4846]
[1753847409095,1.5474,3818.3,3818.2,0.6791]
[1753847409903,1.5474,3818.3,3818.2,1.1162]
[1753847410594,1.1203,3818.6,3818.5,0.2924]
[1753847410790,1.5474,3818.6,3818.5,0.2924]
[1753847411393,0.5007,3818.6,3818.5,0.9258]
[1753847411588,0.8025,3818.6,3818.5,2.21325]
[1753847411990,0.4266,3818.5,3818.4,0.52385]
[1753847412193,1.5474,3818.5,3818.4,1.20295]
[1753847412393,1.5474,3818.5,3818.4,2.21325]
[1753847413101,1.5474,3818.5,3818.4,1.93425]
[1753847414304,1.5474,3818.5,3818.4,2.21325]
[1753847414598,1.2296,3818.5,3818.4,2.21325]
[1753847414797,0.8025,3818.5,3818.4,2.21325]
[1753847415099,0.22950326,3819.3,3819.1,1.01246]
[1753847415100,1.2296,3819.2,3819.1,1.01246]
[1753847415301,1.2296,3819.2,3819.1,1.20466]
[1753847415610,0.5161,3819.3,3819.2,1.4104]
[1753847415901,0.8205,3819.3,3819.2,1.6894]
[1753847416099,1.2476,3819.3,3819.2,1.6894]
[1753847416500,0.018,3819.3,3819.2,6.92603022]
[1753847417703,0.2,3819.9,3819.8,2.21307]
[1753847418003,1.2296,3820.3,3820.2,1.6894]
[1753847418206,1.4252,3820.3,3820.2,1.6894]
[1753847418410,1.5474,3820.3,3820.2,1.6894]
[1753847419208,0.5007,3820.3,3820.2,0.6809]
[1753847419399,0.8025,3820.3,3820.2,0.6809]
[1753847419601,0.7289,3820.2,3819.1,5.23580768]
[1753847419802,0.8025,3819.7,3819.6,2.21309]
[1753847420000,0.1963,3819.7,3819.6,2.21309]
[1753847420204,0.4271,3819.9,3819.7,1.0085]
[1753847420405,0.6234,3819.9,3819.8,1.6894]
[1753847421102,1.2296,3819.9,3819.8,1.6894]
[1753847422902,1.2296,3819.9,3819.7,5.23608183]
[1753847422903,0.1214,3819.8,3819.5,0.2901]
[1753847423108,0.7237,3819.8,3819.5,0.6931]
[1753847423312,1.2153,3819.7,3819.6,1.7157]
[1753847425208,1.5232,3819.7,3819.6,1.7157]
[1753847427410,1.5232,3819.7,3819.6,1.70918948]
[1753847427613,1.5232,3819.7,3819.6,2.23287948]
[1753847428113,1.4018,3819.7,3819.6,2.23287948]
[1753847428309,0.94745,3820.7,3819.8,0.4429]
[1753847428511,1.2017,3820.3,3820.2,0.4795]
[1753847428711,1.2017,3820.3,3819.9,0.4429]
[1753847428712,2.0468,3820.3,3819.9,5.67898183]
[1753847428913,1.5232,3820.0,3819.9,0.2901]
[1753847429116,1.5232,3820.0,3819.9,5.52618183]
[1753847429314,1.5232,3820.0,3819.9,5.71558183]
[1753847429517,1.5232,3820.0,3819.9,0.6767]
[1753847429717,1.5232,3820.0,3819.9,5.91237062]
[1753847430309,1.5232,3820.0,3819.9,6.35527062]
[1753847430515,1.5232,3820.0,3819.9,6.95137062]
[1753847432019,1.5232,3820.0,3819.6,0.4429]
[1753847432220,0.6781,3819.8,3819.7,0.6767]
[1753847432422,1.4018,3819.8,3819.7,0.4795]
[1753847432618,1.5232,3819.8,3819.7,0.4795]
[1753847432813,1.5232,3819.8,3819.7,1.1196]
[1753847433721,1.5232,3819.8,3819.7,1.7157]
[1753847433722,1.2153,3819.8,3819.7,1.7157]
[1753847433919,0.52359,3820.4,3820.0,0.52364]
[1753847434125,0.4916,3820.3,3820.2,1.7157]
[1753847434421,1.3231,3820.3,3820.2,0.9832]
[1753847434627,2.0468,3820.3,3820.2,0.9832]
[1753847435020,1.5232,3820.3,3820.2,0.9832]
[1753847435220,1.5232,3820.3,3820.2,1.4261]
[1753847435515,1.5232,3820.3,3820.2,1.7157]
[1753847437013,2.0468,3820.3,3820.2,1.7157]
[1753847437219,2.0468,3820.3,3820.2,1.4261]
[1753847437625,1.5232,3820.3,3820.2,1.4261]
[1753847437824,1.5232,3820.3,3820.2,1.7157]
[1753847443033,1.5232,3820.5,3820.4,1.4261]
[1753847444238,1.4018,3820.5,3820.4,1.7157]
[1753847444436,1.5232,3820.5,3820.4,1.7157]
[1753847446935,1.2472,3821.1,3820.5,0.733]
[1753847447138,1.55136089,3821.0,3820.9,2.23921]
[1753847447330,1.2153,3821.0,3820.9,1.7157]
[1753847448538,0.7914,3821.0,3820.9,1.7157]
[1753847449241,1.2153,3821.0,3820.9,1.7157]
[1753847449440,0.7914,3821.0,3820.9,1.7157]
[1753847450035,1.2153,3821.0,3820.9,1.7157]
[1753847450737,0.7914,3821.0,3820.9,1.7157]
[1753847451139,0.4916,3821.0,3820.9,1.7157]
[1753847451335,0.1953,3821.0,3820.9,1.7157]
[1753847451542,0.4809,3821.0,3820.9,1.7157]
[1753847451739,0.9193,3821.0,3820.9,1.7157]
[1753847452242,0.52346,3821.4,3821.0,0.5235]
[1753847452444,1.3423,3821.4,3821.3,1.7595]
[1753847452646,1.2205,3821.4,3821.3,1.7595]
[1753847452940,0.5234,3821.8,3821.3,1.4559]
[1753847453135,0.5234,3821.8,3821.6,1.0143]
[1753847453136,1.4154,3821.7,3821.6,1.0143]
[1753847453336,1.5372,3821.7,3821.6,1.7595]
[1753847453932,1.5372,3821.7,3821.4,0.52345]
[1753847453933,0.52342,3821.6,3821.3,0.3036]
[1753847454134,1.5372,3821.4,3821.3,1.1605]
[1753847454442,1.2205,3821.7,3821.6,0.2021]
[1753847454642,0.4965,3821.8,3821.7,0.3036]
[1753847454845,1.5372,3821.8,3821.7,1.4559]
[1753847455139,1.5372,3821.8,3821.7,1.1608]
[1753847455338,1.5372,3821.8,3821.7,1.7595]
[1753847457343,1.4154,3821.8,3821.7,1.7595]
[1753847457839,0.4965,3821.8,3821.7,1.4644]
[1753847458037,1.5372,3821.8,3821.7,1.7595]
[1753847458237,1.5372,3821.8,3821.7,2.28291]
[1753847459135,1.5372,3821.8,3821.7,1.7595]
[1753847460246,1.5372,3821.8,3821.7,1.4644]
[1753847460641,1.5372,3821.8,3821.7,0.7104]
[1753847461243,0.7551,3821.6,3821.3,0.7537]
[1753847461440,1.2516,3821.4,3821.3,0.9584]
[1753847461642,1.2516,3821.4,3821.3,6.99270468]
[1753847461843,1.5372,3821.4,3821.3,6.99270468]
[1753847462443,1.5372,3821.4,3821.1,0.52348]
[1753847462745,0.6914,3821.4,3821.3,0.3036]
[1753847462949,0.6914,3821.4,3821.2,0.4501]
[1753847463250,0.6914,3821.4,3821.3,0.7104]
[1753847463749,1.5372,3821.4,3821.3,0.7104]
[1753847463944,1.4154,3821.7,3821.6,0.7104]
[1753847464151,0.4965,3821.7,3821.6,2.28292]
[1753847464549,1.2205,3821.7,3821.6,2.28292]
[1753847465556,0.9821,3821.9,3821.8,1.23409]
[1753847465753,0.9821,3821.9,3821.8,2.28289]
[1753847466253,1.4205,3821.9,3821.8,1.7595]
[1753847467953,1.6154,3821.9,3821.8,1.7595]
[1753847468147,1.7372,3821.9,3821.8,1.7595]
[1753847470460,1.4205,3821.9,3821.8,1.7595]
[1753847472054,1.7361,3821.9,3821.8,1.7595]
[1753847474358,0.9821,3821.9,3821.8,6.99256775]
[1753847474750,1.4205,3821.9,3821.8,6.99256775]
[1753847476859,0.2,3821.9,3821.8,6.99256775]
[1753847477855,0.018,3822.3,3822.2,2.28284]
[1753847478256,0.018,3822.3,3822.2,7.51590775]
[1753847478653,1.2385,3822.3,3822.2,7.51590775]
[1753847479457,0.018,3822.3,3822.2,7.51590775]
[1753847483661,0.2925,3823.1,3822.8,0.52325]
[1753847483862,1.2406,3822.9,3822.8,1.93255]
[1753847484066,1.5506,3822.9,3822.8,6.64182011]
[1753847484367,1.5506,3822.9,3822.8,5.42382011]
[1753847484573,1.5506,3822.9,3822.8,5.23252011]
[1753847484766,1.5506,3822.9,3822.8,0.6732]
[1753847485267,0.7866,3822.9,3822.8,6.93569886]
[1753847486160,1.2406,3822.9,3822.8,6.93569886]
[1753847487161,1.5506,3822.9,3822.8,5.90489886]
[1753847487362,1.5506,3822.9,3822.8,6.35209886]
[1753847487665,1.5506,3822.9,3822.8,6.93569886]
[1753847488266,1.5506,3822.9,3822.8,6.63339886]
[1753847488771,1.2406,3822.9,3822.8,6.93569886]
[1753847489968,1.5506,3822.9,3822.8,0.4819]
[1753847490172,1.5483,3822.8,3822.7,0.90176]
[1753847490664,1.5483,3822.8,3822.7,2.22726]
[1753847492069,1.2383,3822.8,3822.7,7.45909572]
[1753847492271,0.7843,3822.8,3822.7,7.45909572]
[1753847493066,1.5483,3823.1,3823.0,0.80453]
[1753847493265,1.5483,3823.1,3823.0,2.22723]
[1753847497974,1.5483,3823.1,3823.0,1.92493]
[1753847500673,1.5483,3823.1,3823.0,2.22723]
[1753847502883,1.5483,3823.1,3823.0,1.92493]
[1753847503583,0.4918,3822.4,3822.3,2.22733]
[1753847503780,0.9458,3822.4,3822.3,2.22733]
[1753847504081,0.7843,3822.4,3822.3,7.45875517]
[1753847504282,0.9458,3822.6,3822.5,1.1831]
[1753847504585,1.2383,3822.6,3822.5,7.45968321]
[1753847505081,1.2383,3822.6,3822.5,2.2273]
[1753847505377,1.2383,3822.8,3822.7,1.18307]
[1753847505585,1.2383,3822.8,3822.7,2.22727]
[1753847509090,0.7843,3822.8,3822.7,2.22727]
[1753847510484,0.9458,3823.0,3822.9,0.99174]
[1753847510677,1.2383,3823.0,3822.9,1.63024]
[1753847510882,1.2383,3823.0,3822.9,2.22724]
[1753847512286,1.5542,3823.0,3822.9,2.22724]
[1753847512489,1.5542,3823.0,3822.9,1.19644]
[1753847512690,1.5542,3823.0,3822.9,2.22174]
[1753847513488,1.4327,3823.0,3822.9,2.22174]
[1753847513688,1.4327,3823.0,3822.9,7.45330201]
[1753847513887,0.4389,3823.8,3822.9,8.14309201]
[1753847514190,1.5406,3823.8,3823.7,2.22682]
[1753847514386,0.75955426,3823.8,3823.7,1.48532]
[1753847514588,0.2,3823.9,3823.8,1.7037]
[1753847515294,0.7361,3824.4,3823.8,1.7037]
[1753847515295,0.204,3824.4,3824.3,2.22674]
[1753847515493,0.2972,3824.7,3824.3,0.6652]
[1753847515494,1.05604018,3824.7,3824.3,0.6652]
[1753847515694,0.2972,3824.7,3824.3,5.89553068]
[1753847516193,0.018,3825.3,3824.6,0.297]
[1753847516387,1.2247,3825.3,3825.2,1.1246]
[1753847516592,1.5406,3825.3,3825.2,0.297]
[1753847516890,1.5406,3825.0,3824.9,0.4834]
[1753847517081,0.52307,3824.2,3823.6,0.7415]
[1753847517280,5.22882652,3825.9,3823.7,0.9365]
[1753847517495,0.20824109,3826.2,3823.2,20.953]
[1753847517496,1.74771,3824.7,3824.6,1.7037]
[1753847517787,1.2247,3824.7,3824.6,6.93273158]
[1753847518187,0.7858,3824.7,3824.6,6.93273158]
[1753847519400,1.2247,3824.7,3824.6,6.93273158]
[1753847519689,1.5406,3824.7,3824.6,5.90743158]
[1753847519992,0.683,3824.4,3824.3,0.4834]
[1753847520187,1.5406,3824.4,3824.3,0.4834]
[1753847520387,1.5406,3824.4,3824.3,6.93293666]
[1753847521092,1.4191,3824.4,3824.3,6.93293666]
[1753847521292,0.8576,3825.1,3824.4,1.0385]
[1753847521492,0.7858,3824.6,3824.5,2.22672]
[1753847521681,1.30706,3826.0,3824.5,2.22672]
[1753847521682,0.7858,3825.3,3825.2,0.195]
[1753847521882,1.1017,3825.3,3825.2,1.1246]
[1753847522091,1.1017,3825.3,3825.2,1.93133]
[1753847522293,1.4191,3825.3,3825.2,7.45572994]
[1753847522496,1.2247,3825.3,3825.2,7.45572994]
[1753847523393,0.4886,3825.3,3825.2,7.45572994]
[1753847523597,1.2247,3825.3,3825.2,7.45572994]
[1753847524898,0.4886,3825.3,3825.2,7.45572994]
[1753847525693,1.4191,3825.6,3825.5,1.7037]
[1753847525889,0.683,3825.6,3825.2,5.22909994]
[1753847526194,1.5406,3825.4,3825.3,5.52541644]
[1753847526497,1.5406,3825.4,3825.3,0.6784]
[1753847526793,1.5406,3825.4,3825.2,5.22841644]
[1753847526997,0.20854155,3826.3,3825.0,1.00635]
[1753847526998,0.683,3825.1,3825.0,1.00635]
[1753847527193,1.5406,3825.1,3825.0,1.93135]
[1753847527496,1.4191,3825.1,3825.0,7.45492976]
[1753847527794,1.2247,3825.1,3825.0,7.45492976]
[1753847528792,0.4886,3825.1,3825.0,7.45492976]
[1753847528997,0.2846,3825.1,3825.0,7.45492976]
[1753847529799,0.4886,3825.1,3825.0,7.45492976]
[1753847530097,0.7858,3825.1,3825.0,7.45492976]
[1753847530893,1.2247,3825.1,3825.0,7.45492976]
[1753847531595,1.5406,3825.1,3825.0,6.71342976]
[1753847531795,1.5406,3825.1,3825.0,6.71343976]
[1753847532197,1.5406,3825.1,3825.0,6.93197976]
[1753847533587,2.06354,3825.1,3825.0,5.22827976]